Workbook

Sheet Menue
C6: Version: Februar 2016

Sheet Expo
P1: 100
K2: =C8/$P$1*L2 -> 0 | L2: =IF(D8<>"",POWER(10,D8/10),0) -> 0
K3: 0 | L3: =IF(D9<>"",POWER(10,D9/10),0) -> 0 | N3: 8 | O3: Stunden
K4: 0 | L4: =IF(D10<>"",POWER(10,D10/10),0) -> 0 | N4: 480 | O4: Minuten
K5: 0 | L5: 0 | N5: 40 | O5: Stunden
K6: 0 | L6: 0 | N6: 2400 | O6: Minuten
B7: Tätigkeit | C7: =IF(P1<100,"Stunden",IF(P1>100,"Minuten","Zeitanteil in %")) -> Zeitanteil in % | D7: Pegel | K7: 0 | L7: 0 | N7: 100 | O7: %
K8: 0 | L8: 0
K9: 0 | L9: 0
F10: Bezugszeitraum (bitte wählen): | K10: 0 | L10: 0
K11: 0 | L11: 0
H12: Arbeitsschicht | K12: 0 | L12: 0
K13: 0 | L13: 0
H14: Arbeitswoche | K14: 0 | L14: 0
K15: 0 | L15: 0
H16: relativ | K16: 0 | L16: 0
K17: 0 | L17: 0
K18: 0 | L18: 0
K19: 0 | L19: 0
K20: 0 | L20: 0
K21: 0 | L21: 0
K22: 0 | L22: 0
K26: =10*LOG10(SUM(K2:K23)) -> 
C30: =IF(P1<100,"Summe Stunden",IF(P1>100,"Summe Minuten","Zeitanteil in %")) -> Zeitanteil in % | D30: =IF(OR(P1=40,P1=2400),"LEX,40h","LEX,8h") -> LEX,8h
C31: =SUM(C8:C28) -> 0 | D31: =IF(ISERROR(K26)," ",K26) ->  | R31: .

Sheet ExpoHilfe
B1: IFA-Lärmexpositionsrechner
B3: Mit diesem Rechner kann die Lärmexposition, die sich aus unterschiedlichen Belastungen während eines Beurteilungszeitraums ergibt, ermittelt werden.
B4: Der Beurteilungszeitraum umfasst in der Regel eine repräsentative Arbeitsschicht, in besonderen Fällen eine Arbeitswoche. Dementsprechend wird die gesamte Lärmexposition auf die Bezugszeit von 8 h bzw. 40 h bezogen.
B5: Die Berechnung erfolgt mit der Gleichung:
B11: LpAeq,Tm = äquivalenter Dauerschallpegel für die Teilzeit m
B12: Tm = Teilzeit (in h, min oder %)
B13: T0 = Bezugszeit (8 h, 480 min, 40 h, 2400 min oder 100%)
B14: M = Gesamtzahl der Teilzeiten
B16: Bedienungshinweise
B18: Der Bezugszeitraum ist wählbar (Arbeitsschicht bzw. Arbeitswoche). Die Angaben der Teilzeiten für die einzelnen Tätigkeiten müssen dann entsprechend in Stunden, Minuten oder Prozent erfolgen.
B19: Die aufsummierten Teilzeiten werden unter der Eingabemaske angezeigt.
B20: Die Angabe einer Tätigkeit in der Tabelle ist optional, sie kann als Information für Ihre Ablage von Interesse sein.
B21: Mit der Schaltfläche Drucken erscheint die Druckansicht auf dem Bildschirm. Die Weiterverarbeitung erfolgt aus dieser Ansicht.
B22: Mit der Schaltfläche Zurücksetzen werden alle Eingabefelder geleert.

Sheet AddMitt
C2: Pegel | D2: Pegel | N2: =IF(C3<>"",POWER(10,C3/10),0) -> 0 | O2: =IF(D3<>"",POWER(10,D3/10),0) -> 0
N3: 0 | O3: 0
N4: 0 | O4: 0
N5: 0 | O5: 0
N6: 0 | O6: 0
N7: 0 | O7: 0
N8: 0 | O8: 0
N9: 0 | O9: 0
N10: 0 | O10: 0
N11: 0 | O11: 0
N12: 0 | O12: 0
F13: Pegelwerte können in beide Spalten | N13: 0 | O13: 0
F14: beliebig eingegeben werden. | N14: 0 | O14: 0
N15: 0 | O15: 0
N16: 0 | O16: 0
N17: 0 | O17: 0
N18: 0 | O18: 0
N19: 0 | O19: 0
N20: 0 | O20: 0
N21: 0 | O21: 0
N22: 0 | O22: 0
A23: n = | B23: =COUNT(C3:D23) -> 0 | N23: 0 | O23: 0
B25: Mittelungspegel | C25: =IF(ISERROR(M26)," ",M26) -> 
M26: =10*LOG10(SUM(N2:O23)/COUNT(C3:D23)) ->  | N26: =10*LOG10(SUM(N2:O23)) -> 
B27: Summenpegel | C27: =IF(ISERROR(N26)," ",N26) -> 
B29: zur Info:
B30: Arithm. Mittel | C30: =IF(ISERROR(M26)," ",AVERAGE(C3:D23)) -> 
B31: Standardabw. | C31: =IF(COUNT(C3:D23)<3," ",STDEV(C3:D23)) ->  | T31: .

Sheet Budget
B9: Bei einem Mittelungspegel von | D9: dB(A) | E9: Wertebereich: 80 - 110 dB(A)
B10: wird der Auslösewert
B11: LEX,8h = | C11: 85 | D11: dB(A) nach | E11: =IF(ISBLANK(C9),"",POWER(10,C11/10)*480/POWER(10,C9/10)) ->  | F11: min
B12: LEX,8h = | C12: 80 | D12: dB(A) nach | E12: =IF(ISBLANK(C9),"",POWER(10,C12/10)*480/POWER(10,C9/10)) ->  | F12: min | G12: erreicht!
R29: .

Sheet LAE
S2: Zwischenrechnung
B7: Ereignis (Lärmquelle) | C7: N | D7: LAE | E7: LAeq | F7: std | G7: min | H7: sec | I7: LAE | J7: N*LAE
I8: =IF(D8<>"",D8,IF(AND(E8<>0,SUM(F8:H8)>0),E8+10*LOG10(F8*3600+G8*60+H8),"")) ->  | J8: =IF(AND(I8<>"",C8<>""),I8+10*LOG10(C8),I8) ->  | R8: =IF(J8<>"",POWER(10,0.1*J8),"") -> 
I9: =IF(D9<>"",D9,IF(AND(E9<>0,SUM(F9:H9)>0),E9+10*LOG10(F9*3600+G9*60+H9),"")) ->  | M9: Zeitraum | N9: 8 | O9: Stunden | R9: =IF(J9<>"",POWER(10,0.1*J9),"") -> 
M11: Hintergrundgeräuschpegel | O11: dB(A)
J26: =IF(C26<>"",I26+10*LOG10(C26),"") -> 
B27: =IF(N11<>"","Hintergrundgeräuschpegel","") ->  | E27: =IF(N11<>"",N11,"") ->  | R27: =IF(N11="",0,POWER(10,0.1*N11)) -> 0
R28: =IF(SUM(R8:R26)>0,10*LOG10(SUM(R8:R26)/(N9*3600)+R27),"") ->  | AA28: .
D29: ="Mittelungspegel für den Zeitraum von "&TEXT(N9,0)&" Stunden:" -> Mittelungspegel für den Zeitraum von 8 Stunden: | E29: =IF(R28>0,R28,"") -> 
I30: Prüfung:
D31: =IF(N11="","Bitte den Hintergrundgeräuschpegel eingeben!","") -> Bitte den Hintergrundgeräuschpegel eingeben! | I31: N | J31: Laeq Zeit
I32: =IF(AND(D8<>0,C8=""),1,"") ->  | J32: =IF(AND(E8<>0,SUM(F8:H8)=0),1,"") -> 
D33: =IF(I50<>0,"Bitte zu jedem Ereignis LAE die Anzahl (N) eingeben!",IF(J50<>0,"Bei LAeq bitte zusätzlich die Zeit angeben!","")) ->  | I33: =IF(AND(D9<>0,C9=""),1,"") ->  | J33: =IF(AND(E9<>0,SUM(F9:H9)=0),1,"") -> 
I50: =SUM(I32:I49) -> 0 | J50: =SUM(J32:J49) -> 0

Sheet LAE Hilfe
B2: Bestimmung einer Lärmexposition aus Einzelereignispegeln | F2: Beispiel
B4: Wird die mittlere Schallenergie in einem zu beurteilenden Zeitraum durch Einzelereignisse bestimmt, lässt sich die Lärmexposition durch die Verwendung von Einzelereignispegeln bestimmen. | F4: Sie müssen an einem 8-stündigen Arbeitstag 10x den Winkelschleifer für 2 Minuten einsetzen, 3x läuft ein Kompressor je 10 Minuten und 100x müssen Sie einen Nagel einschlagen. Von den ersten beiden Ereignissen kennen Sie den Mittelungspegel für die Maschinen, für das Einschlagen eines Nagels ist der LAE bekannt.
B5: Mit diesem Rechner können Sie bequem die Belastung durch verschiedene Ereignisse (Lärmquelle i = 1 ... k) mit unterschiedlicher Häufigkeit ni ermitteln. | F5: Der Hintergrundgeräuschpegel beträgt hier 75 dB(A).
F6: Welcher Mittelungspegel ergibt sich für diese Zeit?
B7: Der Einzelereignispegel LAE gibt die Schallenergie eines Ereignisses bezogen auf 1s an.
B8: Manche Messgeräte geben den LAE aus, er lässt sich aber auch einfach aus einer Messung des LAeq bestimmen, die das Einzelereignis einschließt.
B10: Rechenvorschrift:
B13: mit:
B14: t = Messdauer in Sekunden
B16: Aus dem Einzelereignispegel und der Anzahl der Ereignisse in einem Zeitabschnitt lässt sich jetzt die mittlere Lärmbelastung für einen beliebigen Zeitraum T bestimmen.
B18: Rechenvorschrift:
B24: mit:
B25: LAE i = LAE für ein Ereignis der Lärmquelle i
B26: ni = Anzahl der Ereignisse der Lärmquelle i im betrachteten Zeitraum
B27: T = Zeitraum in Sekunden
F28: Typische Zeiträume (beispielhaft):
B29: In der Tabelle kann für jede Lärmquelle entweder der LAE eingegeben werden oder der LAeq und die Dauer t. Die Dauer kann in Stunden, Minuten und/oder Sekunden angegeben werden. | F29: Arbeitslärm - Tätigkeit
B30: Wird ein LAE angegeben, so werden Angaben zu Pegel und Dauer in der gleichen Zeile ignoriert. Die Angabe der Anzahl der verschiedenen Ereignisse ist erforderlich. | F30: - Arbeitsschicht - Arbeitswoche
B31: Die Angabe des Zeitraums ist wählbar, voreingestellt sind 8 Stunden. | F31: Umweltlärm
B32: Ein Hintergrundgeräuschpegel kann eingegeben werden, er wird dann mit berücksichtigt. | F32: - Tageszeit (16 h)
F33: - Nachtzeit (8 h)

Sheet Ultraschall
B2: Exposition im Beisein von luftgeleitetem Ultraschall
AE3: zur Verfügung gestellt von Herrn Dipl.-Ing. Heiko Kusserow
V5: Bemerkung zur Messung:
B6: Terzmitten- frequenz [Hz] | C6: A-Bewertung | D6: U-Bewertung | E6: AU-Bewertung | F6: C-Bewertung | G6: Z-Bewertung | H6: Ultra-Bewertung | I6: à | J6: Messwert LpZeq,Terz [dB] | K6: à | L6: Wertprüfung | M6: Wert für Grafik | N6: Z-Bewertung | O6: A-Bewertung | P6: A-Bewertung | Q6: AU-Bewertung | R6: AU-Bewertung | S6: U-Bewertung | T6: U-Bewertung
B7: 10 | C7: -70.4 | D7: 0 | E7: -70.4 | F7: -14.3 | G7: 0 | I7: à | J7: 0 | K7: à | L7: =IF(J7<0,"ungültiger Wert",IF(J7>170,"ungültiger Wert","ok")) -> ok | M7: =IF(J7<0,0,IF(J7>170,0,J7)) -> 0 | N7: =IF(L7="ok",(POWER(10,0.1*J7)),1) -> 1 | O7: =J7+C7 -> -70.4 | P7: =POWER(10,0.1*O7) -> 9.120108394e-08 | Q7: =J7+E7 -> -70.4 | R7: =POWER(10,0.1*Q7) -> 9.120108394e-08 | S7: =J7+D7 -> 0 | T7: =POWER(10,0.1*S7) -> 1
B8: 12.5 | C8: -63.4 | D8: 0 | E8: -63.4 | F8: -11.2 | G8: 0 | I8: à | J8: 0 | K8: à | L8: =IF(J8<0,"ungültiger Wert",IF(J8>170,"ungültiger Wert","ok")) -> ok | M8: =IF(J8<0,0,IF(J8>170,0,J8)) -> 0 | N8: =IF(L8="ok",(POWER(10,0.1*J8)),1) -> 1 | O8: -63.4 | P8: 4.570881896e-07 | Q8: -63.4 | R8: 4.570881896e-07 | S8: 0 | T8: 1 | V8: LZeq: | W8: =IF(SUM(J7:J40)>0,10*LOG(N42),0) -> 0 | X8: dB
B9: 16 | C9: -56.7 | D9: 0 | E9: -56.7 | F9: -8.5 | G9: 0 | I9: à | J9: 0 | K9: à | L9: ok | M9: 0 | N9: 1 | O9: -56.7 | P9: 2.13796209e-06 | Q9: -56.7 | R9: 2.13796209e-06 | S9: 0 | T9: 1
B10: 20 | C10: -50.5 | D10: 0 | E10: -50.5 | F10: -6.2 | G10: 0 | I10: à | J10: 0 | K10: à | L10: ok | M10: 0 | N10: 1 | O10: -50.5 | P10: 8.912509381e-06 | Q10: -50.5 | R10: 8.912509381e-06 | S10: 0 | T10: 1
B11: 25 | C11: -44.7 | D11: 0 | E11: -44.7 | F11: -4.4 | G11: 0 | I11: à | J11: 0 | K11: à | L11: ok | M11: 0 | N11: 1 | O11: -44.7 | P11: 3.388441561e-05 | Q11: -44.7 | R11: 3.388441561e-05 | S11: 0 | T11: 1 | V11: LAeq: | W11: =IF(SUM(J7:J40)>0,10*LOG(P42),0) -> 0 | X11: dB | Z11: LAeq,Hfb: | AA11: =IF(SUM(J9:J39)>0,10*LOG(P46),0) -> 0 | AB11: dB
B12: 31.5 | C12: -39.4 | D12: 0 | E12: -39.4 | F12: -3 | G12: 0 | I12: à | J12: 0 | K12: à | L12: ok | M12: 0 | N12: 1 | O12: -39.4 | P12: 0.0001148153621 | Q12: -39.4 | R12: 0.0001148153621 | S12: 0 | T12: 1
B13: 40 | C13: -34.6 | D13: 0 | E13: -34.6 | F13: -2 | G13: 0 | I13: à | J13: 0 | K13: à | L13: ok | M13: 0 | N13: 1 | O13: -34.6 | P13: 0.0003467368505 | Q13: -34.6 | R13: 0.0003467368505 | S13: 0 | T13: 1 | Z13: Hfb: Hörfrequenzbereich (16 Hz bis 16 kHz)
B14: 50 | C14: -30.2 | D14: 0 | E14: -30.2 | F14: -1.3 | G14: 0 | I14: à | J14: 0 | K14: à | L14: ok | M14: 0 | N14: 1 | O14: -30.2 | P14: 0.000954992586 | Q14: -30.2 | R14: 0.000954992586 | S14: 0 | T14: 1 | V14: LAUeq: | W14: =IF(SUM(J7:J40)>0,10*LOG(R42),0) -> 0 | X14: dB
B15: 63 | C15: -26.2 | D15: 0 | E15: -26.2 | F15: -0.8 | G15: 0 | I15: à | J15: 0 | K15: à | L15: ok | M15: 0 | N15: 1 | O15: -26.2 | P15: 0.002398832919 | Q15: -26.2 | R15: 0.002398832919 | S15: 0 | T15: 1
B16: 80 | C16: -22.5 | D16: 0 | E16: -22.5 | F16: -0.5 | G16: 0 | I16: à | J16: 0 | K16: à | L16: ok | M16: 0 | N16: 1 | O16: -22.5 | P16: =POWER(10,0.1*O16) -> 0.005623413252 | Q16: -22.5 | R16: =POWER(10,0.1*Q16) -> 0.005623413252 | S16: 0 | T16: =POWER(10,0.1*S16) -> 1
B17: 100 | C17: -19.1 | D17: 0 | E17: -19.1 | F17: -0.3 | G17: 0 | I17: à | J17: 0 | K17: à | L17: ok | M17: 0 | N17: 1 | O17: -19.1 | P17: =POWER(10,0.1*O17) -> 0.01230268771 | Q17: -19.1 | R17: =POWER(10,0.1*Q17) -> 0.01230268771 | S17: 0 | T17: =POWER(10,0.1*S17) -> 1
B18: 125 | C18: -16.1 | D18: 0 | E18: -16.1 | F18: -0.2 | G18: 0 | I18: à | J18: 0 | K18: à | L18: ok | M18: 0 | N18: 1 | O18: -16.1 | P18: 0.02454708916 | Q18: -16.1 | R18: 0.02454708916 | S18: 0 | T18: 1
B19: 160 | C19: -13.4 | D19: 0 | E19: -13.4 | F19: -0.1 | G19: 0 | I19: à | J19: 0 | K19: à | L19: ok | M19: 0 | N19: 1 | O19: -13.4 | P19: 0.04570881896 | Q19: -13.4 | R19: 0.04570881896 | S19: 0 | T19: 1
B20: 200 | C20: -10.9 | D20: 0 | E20: -10.9 | F20: 0 | G20: 0 | I20: à | J20: 0 | K20: à | L20: ok | M20: 0 | N20: 1 | O20: -10.9 | P20: 0.08128305162 | Q20: -10.9 | R20: 0.08128305162 | S20: 0 | T20: 1
B21: 250 | C21: -8.6 | D21: 0 | E21: -8.6 | F21: 0 | G21: 0 | I21: à | J21: 0 | K21: à | L21: ok | M21: 0 | N21: 1 | O21: -8.6 | P21: 0.1380384265 | Q21: -8.6 | R21: 0.1380384265 | S21: 0 | T21: 1
B22: 315 | C22: -6.6 | D22: 0 | E22: -6.6 | F22: 0 | G22: 0 | I22: à | J22: 0 | K22: à | L22: ok | M22: 0 | N22: 1 | O22: -6.6 | P22: 0.2187761624 | Q22: -6.6 | R22: 0.2187761624 | S22: 0 | T22: 1
B23: 400 | C23: -4.8 | D23: 0 | E23: -4.8 | F23: 0 | G23: 0 | I23: à | J23: 0 | K23: à | L23: ok | M23: 0 | N23: 1 | O23: -4.8 | P23: 0.3311311215 | Q23: -4.8 | R23: 0.3311311215 | S23: 0 | T23: 1
B24: 500 | C24: -3.2 | D24: 0 | E24: -3.2 | F24: 0 | G24: 0 | I24: à | J24: 0 | K24: à | L24: ok | M24: 0 | N24: 1 | O24: -3.2 | P24: 0.4786300923 | Q24: -3.2 | R24: 0.4786300923 | S24: 0 | T24: 1
B25: 630 | C25: -1.9 | D25: 0 | E25: -1.9 | F25: 0 | G25: 0 | I25: à | J25: 0 | K25: à | L25: ok | M25: 0 | N25: 1 | O25: -1.9 | P25: 0.645654229 | Q25: -1.9 | R25: 0.645654229 | S25: 0 | T25: 1
B26: 800 | C26: -0.8 | D26: 0 | E26: -0.8 | F26: 0 | G26: 0 | I26: à | J26: 0 | K26: à | L26: ok | M26: 0 | N26: 1 | O26: -0.8 | P26: 0.8317637711 | Q26: -0.8 | R26: 0.8317637711 | S26: 0 | T26: 1
B27: 1000 | C27: 0 | D27: 0 | E27: 0 | F27: 0 | G27: 0 | I27: à | J27: 0 | K27: à | L27: ok | M27: 0 | N27: 1 | O27: 0 | P27: 1 | Q27: 0 | R27: 1 | S27: 0 | T27: 1
B28: 1250 | C28: 0.6 | D28: 0 | E28: 0.6 | F28: 0 | G28: 0 | I28: à | J28: 0 | K28: à | L28: ok | M28: 0 | N28: 1 | O28: 0.6 | P28: 1.148153621 | Q28: 0.6 | R28: 1.148153621 | S28: 0 | T28: 1
B29: 1600 | C29: 1 | D29: 0 | E29: 1 | F29: -0.1 | G29: 0 | I29: à | J29: 0 | K29: à | L29: ok | M29: 0 | N29: 1 | O29: 1 | P29: 1.258925412 | Q29: 1 | R29: 1.258925412 | S29: 0 | T29: 1
B30: 2000 | C30: 1.2 | D30: 0 | E30: 1.2 | F30: -0.2 | G30: 0 | I30: à | J30: 0 | K30: à | L30: ok | M30: 0 | N30: 1 | O30: 1.2 | P30: 1.318256739 | Q30: 1.2 | R30: 1.318256739 | S30: 0 | T30: 1
B31: 2500 | C31: 1.3 | D31: 0 | E31: 1.3 | F31: -0.3 | G31: 0 | I31: à | J31: 0 | K31: à | L31: ok | M31: 0 | N31: 1 | O31: 1.3 | P31: 1.348962883 | Q31: 1.3 | R31: 1.348962883 | S31: 0 | T31: 1
B32: 3150 | C32: 1.2 | D32: 0 | E32: 1.2 | F32: -0.5 | G32: 0 | I32: à | J32: 0 | K32: à | L32: ok | M32: 0 | N32: 1 | O32: 1.2 | P32: 1.318256739 | Q32: 1.2 | R32: 1.318256739 | S32: 0 | T32: 1
B33: 4000 | C33: 1 | D33: 0 | E33: 1 | F33: -0.8 | G33: 0 | I33: à | J33: 0 | K33: à | L33: ok | M33: 0 | N33: 1 | O33: 1 | P33: 1.258925412 | Q33: 1 | R33: 1.258925412 | S33: 0 | T33: 1
B34: 5000 | C34: 0.5 | D34: 0 | E34: 0.5 | F34: -1.3 | G34: 0 | I34: à | J34: 0 | K34: à | L34: ok | M34: 0 | N34: 1 | O34: 0.5 | P34: 1.122018454 | Q34: 0.5 | R34: 1.122018454 | S34: 0 | T34: 1
B35: 6300 | C35: -0.1 | D35: 0 | E35: -0.1 | F35: -2 | G35: 0 | I35: à | J35: 0 | K35: à | L35: ok | M35: 0 | N35: 1 | O35: -0.1 | P35: 0.977237221 | Q35: -0.1 | R35: 0.977237221 | S35: 0 | T35: 1
B36: 8000 | C36: -1.1 | D36: 0 | E36: -1.1 | F36: -3 | G36: 0 | H36: -27 | I36: à | J36: 0 | K36: à | L36: ok | M36: 0 | N36: 1 | O36: -1.1 | P36: 0.7762471166 | Q36: -1.1 | R36: 0.7762471166 | S36: 0 | T36: 1
B37: 10000 | C37: -2.5 | D37: 0 | E37: -2.5 | F37: -4.4 | G37: 0 | H37: -11.1 | I37: à | J37: 0 | K37: à | L37: ok | M37: 0 | N37: 1 | O37: -2.5 | P37: 0.5623413252 | Q37: -2.5 | R37: 0.5623413252 | S37: 0 | T37: 1
B38: 12500 | C38: -4.3 | D38: -2.8 | E38: -7.1 | F38: -6.2 | G38: 0 | H38: -2.6 | I38: à | J38: 0 | K38: à | L38: ok | M38: 0 | N38: 1 | O38: -4.3 | P38: 0.3715352291 | Q38: -7.1 | R38: 0.19498446 | S38: -2.8 | T38: 0.5248074602
B39: 16000 | C39: -6.6 | D39: -13 | E39: -19.6 | F39: -8.5 | G39: 0 | H39: 0 | I39: à | J39: 0 | K39: à | L39: ok | M39: 0 | N39: 1 | O39: -6.6 | P39: 0.2187761624 | Q39: -19.6 | R39: 0.01096478196 | S39: -13 | T39: 0.05011872336
B40: 20000 | C40: -9.3 | D40: -25.3 | E40: -34.6 | F40: -11.2 | G40: 0 | H40: 0 | I40: à | J40: 0 | K40: à | L40: ok | M40: 0 | N40: 1 | O40: -9.3 | P40: 0.1174897555 | Q40: -34.6 | R40: 0.0003467368505 | S40: -25.3 | T40: 0.002951209227
N42: =SUM(N7:N40) -> 34 | O42: =10*LOG(P42) -> 11.93526574 | P42: =SUM(P7:P40) -> 15.61444579 | Q42: =10*LOG(R42) -> 11.79348976 | R42: =SUM(R7:R40) -> 15.11294063 | S42: =10*LOG(T42) -> 14.99382934 | T42: =SUM(T7:T40) -> 31.57787739
N46: LpAeq,Hfb: | O46: =10*LOG(P46) -> 11.90246386 | P46: =SUM(P9:P39) -> 15.49695549
